bitfinex-derivatives/quotes_SOLF0:USTF0_20250227
["timestamp","ask_amount","ask_price","bid_price","bid_amount"]
[1740672169906,34.09243143,139.84,139.78,0.18]
[1740672170109,34.09243143,139.79,139.66,536.86177669]
[1740672170306,21.43,139.77,139.27,382.00714947]
[1740672170501,34.14006732,139.46,139.3,1.43575017]
[1740672170705,34.14006732,139.45,139.3,1.43575017]
[1740672170907,12.26,139.45,139.3,1.43575017]
[1740672171205,0.04672332,139.39,139.36,0.05019912]
[1740672171402,12.26,139.45,139.36,240.63019912]
[1740672171611,12.26,139.45,139.36,240.58]
[1740672171803,32.26019342,139.44,139.36,240.58]
[1740672172408,32.26019342,139.44,139.36,283.46766932]
[1740672172711,0.0533601,139.41,139.39,0.0487109]
[1740672172910,0.0533601,139.41,139.39,42.93638022]
[1740672173211,120.32896029,139.43,139.39,10.6228267]
[1740672174107,0.05482824,139.42,139.39,10.6228267]
[1740672174308,109.80967273,139.43,139.39,0.0487109]
[1740672175308,80.11090554,139.41,139.36,240.58]
[1740672175708,80.11090554,139.41,139.36,262.1]
[1740672175909,22.23635988,139.41,139.36,262.1]
[1740672176214,40.1111599,139.42,139.36,262.1]
[1740672176712,40.1111599,139.42,139.38,0.05012462]
[1740672177110,948.91121476,139.4,139.38,0.05012462]
[1740672177609,948.91121476,139.4,139.38,21.57012462]
[1740672177809,948.91121476,139.4,139.38,0.05012462]
[1740672178005,948.91121476,139.4,139.38,21.57012462]
[1740672178410,698.48934369,139.39,139.38,21.57012462]
[1740672178810,565.66324369,139.39,139.38,21.57012462]
[1740672179120,561.97664369,139.39,139.38,21.57012462]
[1740672180813,561.97664369,139.39,139.38,20.82259491]
[1740672181210,242.06918744,139.39,139.36,240.58]
[1740672181417,21.43,139.61,139.36,262.1]
[1740672181611,34.14006732,139.47,139.36,240.58]
[1740672181818,0.04565275,139.43,139.4,0.04804777]
[1740672184223,0.04565275,139.43,139.36,240.37846017]
[1740672184422,129.86305784,139.43,139.36,240.37846017]
[1740672184921,34.09243143,139.41,139.36,240.37846017]
[1740672185120,34.14006732,139.41,139.36,240.37846017]
[1740672185321,34.19432807,139.4,139.37,0.05356732]
[1740672186016,129.87166584,139.4,139.37,0.05356732]
[1740672186212,34.14006732,139.39,139.37,0.05356732]
[1740672186623,34.14006732,139.38,139.36,45.79846017]
[1740672186816,34.14006732,139.37,139.36,45.79846017]
[1740672187423,0.05426075,139.4,139.36,45.79846017]
[1740672187616,129.87166584,139.4,139.36,45.79846017]
[1740672187823,0.04763589,139.39,139.37,0.05275482]
[1740672188118,34.14006732,139.38,139.37,0.05275482]
[1740672188522,163.95747241,139.38,139.37,0.05275482]
[1740672188723,171.13617241,139.38,139.37,0.05275482]
[1740672188924,163.95747241,139.38,139.37,0.05275482]
[1740672189820,7.1787,139.38,139.37,0.05275482]
[1740672190528,7.1793,139.37,139.36,45.79846017]
[1740672190823,41.31936732,139.37,139.36,45.79846017]
[1740672191124,163.95747241,139.37,139.29,195.0]
[1740672191424,34.14006732,139.35,139.29,195.0]
[1740672191624,0.05285234,139.34,139.32,0.04843254]
[1740672193126,34.14528377,139.34,139.32,0.04843254]
[1740672193316,34.19291966,139.34,139.32,0.04843254]
[1740672193516,0.05285234,139.34,139.32,0.04843254]
[1740672195254,12.22,139.43,139.32,0.04843254]
[1740672195446,12.22,139.43,139.29,195.0]
[1740672195649,34.14006732,139.42,139.29,195.0]
[1740672195846,2.2575,139.47,139.29,195.0]
[1740672196055,34.14006732,139.45,139.29,195.0]
[1740672196244,34.09243143,139.44,139.29,195.0]
[1740672196460,0.04655129,139.38,139.36,0.04533015]
[1740672196761,34.09243143,139.44,139.36,0.04533015]
[1740672196959,2.2575,139.47,139.36,0.04533015]
[1740672197257,12.22,139.51,139.36,12.22]
[1740672197460,34.14006732,139.49,139.37,2.5384]
[1740672197863,0.05465522,139.44,139.42,0.05420813]
[1740672198271,7.1762,139.43,139.42,0.05420813]
[1740672198463,41.31626732,139.43,139.42,0.05420813]
[1740672198661,0.04552105,139.44,139.37,2.5384]
[1740672198858,34.14006732,139.43,139.37,2.5384]
[1740672199058,34.09243143,139.43,139.37,2.5384]
[1740672199265,7.1765,139.43,139.37,2.5384]
[1740672199861,0.04552105,139.44,139.39,0.04531821]
[1740672200057,0.04552105,139.44,139.4,195.12]
[1740672202073,34.13795248,139.44,139.4,195.12]
[1740672202670,41.31395248,139.44,139.4,195.12]
[1740672202964,164.00299346,139.44,139.4,195.12]
[1740672203159,41.31716732,139.42,139.4,195.12]
[1740672203663,0.04552105,139.44,139.4,195.12]
[1740672203866,41.31636732,139.43,139.4,195.12]
[1740672204271,0.04552105,139.44,139.4,195.12]
[1740672204463,164.00299346,139.44,139.4,195.12]
[1740672204663,34.09243143,139.43,139.4,195.12]
[1740672204965,7.1763,139.43,139.4,195.12]
[1740672205358,7.177,139.42,139.4,195.12]
[1740672205555,41.31706732,139.42,139.4,195.12]
[1740672205758,7.177,139.42,139.4,195.12]
[1740672206157,7.1763,139.43,139.4,195.12]
[1740672206364,41.31636732,139.43,139.4,195.12]
[1740672207742,34.14006732,139.43,139.4,195.12]
[1740672207944,7.1767,139.42,139.4,195.12]
[1740672208341,0.04552105,139.44,139.4,195.12]
[1740672208542,34.14006732,139.43,139.4,195.12]
[1740672209143,41.31646732,139.43,139.4,195.12]
[1740672209346,0.04552105,139.44,139.4,195.12]
[1740672210749,7.1763,139.43,139.4,195.12]
[1740672210958,34.14006732,139.43,139.4,195.12]
[1740672211150,34.14006732,139.42,139.4,195.12]
[1740672211350,7.1772,139.41,139.39,0.04531821]
[1740672212656,7.1772,139.41,139.39,9.87644513]
[1740672212850,0.04552105,139.44,139.39,9.87644513]
[1740672214258,34.09243143,139.43,139.39,9.87644513]
[1740672214465,34.09243143,139.41,139.39,9.87644513]
[1740672214851,0.04552105,139.44,139.39,9.87644513]
[1740672215057,34.09243143,139.42,139.39,9.87644513]
[1740672215256,34.09243143,139.41,139.39,9.87644513]
[1740672215651,0.04552105,139.44,139.39,9.87644513]
[1740672215958,34.09243143,139.43,139.39,0.04531821]
[1740672216157,34.14006732,139.43,139.39,0.04531821]
[1740672216358,34.14006732,139.41,139.39,0.04531821]
[1740672216664,0.04552105,139.44,139.39,0.04531821]
[1740672216864,34.09243143,139.42,139.39,0.04531821]
[1740672217161,34.14006732,139.41,139.39,0.04531821]
[1740672217465,34.14006732,139.4,139.39,0.04531821]
[1740672217658,41.31776732,139.4,139.39,0.04531821]
[1740672217854,0.04788283,139.41,139.39,0.04531821]
[1740672218766,41.31776732,139.4,139.39,0.04531821]
[1740672219067,129.86528792,139.41,139.39,0.04531821]
[1740672219261,0.04788283,139.41,139.39,0.04531821]
[1740672219565,2.3354,139.54,139.39,0.04531821]
[1740672219762,2.4159,139.53,139.39,193.0]
[1740672220064,34.14006732,139.47,139.39,193.0]
[1740672220264,7.1756,139.45,139.39,193.0]
[1740672220564,34.14006732,139.46,139.39,193.0]
[1740672220756,0.05360963,139.43,139.41,0.05334527]
[1740672220959,34.14006732,139.42,139.41,0.05334527]
[1740672221261,0.05360963,139.43,139.41,0.05334527]
[1740672221863,41.31676732,139.42,139.41,0.05334527]
[1740672222162,34.14006732,139.42,139.35,9.83112692]
[1740672222368,34.14006732,139.41,139.38,9.83112692]
[1740672222566,0.04763589,139.41,139.38,9.83112692]
[1740672222861,0.04763589,139.39,139.38,9.83112692]
[1740672223066,34.14006732,139.39,139.38,9.83112692]
[1740672223259,7.1782,139.39,139.38,9.83112692]
[1740672224061,0.04884947,139.4,139.38,9.83112692]
[1740672224463,2.4427,139.46,139.38,9.83112692]
[1740672224663,34.09243143,139.46,139.38,9.83112692]
[1740672225262,7.1754,139.45,139.38,9.83112692]
[1740672225769,7.23080503,139.43,139.4,0.04798443]
[1740672225970,0.10204092,139.43,139.4,0.04798443]
[1740672226164,34.14006732,139.42,139.38,9.83112692]
[1740672226373,7.1775,139.41,139.4,0.05037621]
[1740672226564,0.04763589,139.39,139.37,195.1]
[1740672226872,34.09243143,139.38,139.37,195.1]
[1740672227170,34.14006732,139.39,139.37,195.1]
[1740672227558,7.1787,139.38,139.37,195.1]
[1740672227764,34.14006732,139.38,139.37,0.0518136]
[1740672228064,171.13617241,139.38,139.37,0.0518136]
[1740672228460,163.95747241,139.38,139.3,22.36815384]
[1740672228661,7.1804,139.35,139.3,22.36815384]
[1740672229272,34.09243143,139.35,139.3,22.36815384]
[1740672229469,34.14006732,139.34,139.3,9.83112692]
[1740672229668,34.19229919,139.34,139.31,0.04782684]
[1740672229868,34.1446633,139.34,139.31,0.04782684]
[1740672230362,0.05223187,139.34,139.31,0.04782684]
[1740672230765,0.05223187,139.34,139.31,0.30043684]
[1740672231060,163.96206839,139.34,139.31,0.30043684]
[1740672231265,164.00970428,139.34,139.31,0.30043684]
[1740672231765,171.19070428,139.34,139.31,0.30043684]
[1740672231965,164.00970428,139.34,139.31,0.30043684]
[1740672232368,34.14006732,139.32,139.31,0.30043684]
[1740672232767,171.13927241,139.32,139.31,0.30043684]
[1740672237374,7.1823,139.31,139.3,0.28646254]
[1740672237573,41.32236732,139.31,139.3,0.28646254]
[1740672237772,171.13977241,139.31,139.3,0.28646254]
[1740672238374,5.33393187,139.34,139.26,72.3346147]
[1740672238575,34.14006732,139.27,139.26,72.3346147]
[1740672239276,41.32446732,139.27,139.26,72.1479147]
[1740672240477,28.77203589,139.27,139.26,8.327e-05]
[1740672240680,0.04763589,139.27,139.26,8.327e-05]
[1740672240976,5.49763074,139.27,139.26,8.327e-05]
[1740672242282,0.04763589,139.27,139.26,8.327e-05]
[1740672242773,5.48903029,139.28,139.26,8.327e-05]
[1740672242980,5.53666618,139.28,139.26,8.327e-05]
[1740672243581,0.0515183,139.28,139.26,8.327e-05]
[1740672244877,0.04763589,139.27,139.26,8.327e-05]
[1740672245475,0.0515183,139.28,139.26,8.327e-05]
[1740672245682,0.04763589,139.27,139.26,8.327e-05]
[1740672245984,0.0515183,139.28,139.26,8.327e-05]
[1740672246779,0.04763589,139.27,139.26,8.327e-05]
[1740672247174,0.0515183,139.28,139.26,8.327e-05]
[1740672247371,0.04763589,139.27,139.26,8.327e-05]
[1740672254982,7.23203589,139.27,139.26,8.327e-05]
[1740672255390,0.04763589,139.27,139.26,8.327e-05]
[1740672256382,21.54,139.27,139.24,141.16450264]
[1740672256689,1.32102837,139.26,139.24,9.82710264]
[1740672256885,7.1854,139.25,139.24,9.82710264]
[1740672257089,8.50671826,139.25,139.24,9.82710264]
[1740672257290,30.04671826,139.25,139.24,9.82710264]
[1740672257693,8.50671826,139.25,139.24,9.82710264]
[1740672258288,30.04671826,139.25,139.24,9.82710264]
[1740672258684,8.50671826,139.25,139.24,9.82710264]
[1740672258884,30.04671826,139.25,139.24,9.82710264]
[1740672259381,22.86131826,139.25,139.22,245.77817316]
[1740672259586,7.1865,139.23,139.22,245.77817316]
[1740672259787,20.64781826,139.23,139.22,245.77817316]
[1740672259991,42.18781826,139.23,139.22,234.37377316]
[1740672261692,13.46131826,139.23,139.22,234.37377316]
[1740672262195,42.18781826,139.23,139.22,223.51247316]
[1740672263596,20.64781826,139.23,139.22,223.51247316]
[1740672263795,42.18781826,139.23,139.22,201.56867316]
[1740672264596,84.47043332,139.23,139.22,201.56867316]
[1740672265291,84.47092725,139.23,139.22,201.56867316]
[1740672265489,50.79092725,139.23,139.22,201.56867316]
[1740672265798,43.60442725,139.23,139.22,201.56867316]
[1740672265998,42.28261506,139.23,139.22,201.56867316]
[1740672266499,14.89091506,139.23,139.22,201.56867316]
[1740672266697,0.04857992,139.25,139.22,201.56867316]
[1740672267798,0.04857992,139.25,139.22,340.6357758]
[1740672270093,328.40291848,139.29,139.22,201.56867316]
[1740672270999,9.89656545,139.25,139.22,201.56867316]
[1740672271199,111.46575873,139.29,139.22,201.56867316]
[1740672271393,1.599e-05,139.25,139.22,223.15725308]
[1740672271598,1.599e-05,139.25,139.22,397.07725308]
[1740672271807,1.599e-05,139.25,139.22,418.61725308]
[1740672271998,1.599e-05,139.25,139.24,7.186]
[1740672272202,56.83137472,139.29,139.22,397.07725308]
[1740672272402,19.43737472,139.29,139.22,418.61725308]
[1740672272601,19.43737472,139.29,139.28,7.1839]
[1740672272797,19.43737472,139.29,139.22,418.56867316]
[1740672272999,19.43737472,139.29,139.22,397.02867316]
[1740672273405,0.05092657,139.27,139.24,0.05296054]
[1740672273807,0.05092657,139.27,139.24,21.59296054]
[1740672274106,0.05092657,139.27,139.24,28.77856054]
[1740672274604,25.2028,139.38,139.24,28.77856054]
[1740672274605,18.0237,139.38,139.24,21.59296054]
[1740672274811,18.0237,139.38,139.22,397.02867316]
[1740672275008,18.0237,139.38,139.22,398.46524836]
[1740672275710,7.1807,139.35,139.22,405.65214836]
[1740672276006,0.05009802,139.31,139.29,0.04738403]
[1740672276205,18.0237,139.38,139.22,398.46524836]
[1740672276399,18.0237,139.38,139.29,0.04760418]
[1740672276601,0.05508661,139.31,139.29,0.04760418]
[1740672276911,0.05341934,139.31,139.29,0.04588733]
[1740672278708,7.1779,139.4,139.29,21.58588733]
[1740672278904,19.3179,139.4,139.29,0.04588733]
[1740672279109,12.14,139.4,139.27,7.1841]
[1740672279313,19.3179,139.4,139.28,7.1839]
[1740672279502,8.6062,139.45,139.23,12.14]
[1740672279706,12.14,139.44,139.23,12.14]
[1740672279908,0.04875542,139.35,139.33,0.04863561]
[1740672280109,8.6062,139.45,139.33,195.38863561]
[1740672280311,7.1748,139.46,139.33,195.34]
[1740672280612,12.14,139.47,139.33,195.34]
[1740672281618,0.04619017,139.41,139.39,0.05257022]
[1740672281909,7.1777,139.4,139.39,0.05257022]
[1740672282112,12.14,139.47,139.39,0.05257022]
[1740672282313,0.05318782,139.41,139.39,0.05257022]
[1740672282509,7.1768,139.42,139.39,0.05257022]
[1740672283112,7.1777,139.4,139.39,0.05257022]
[1740672283414,0.04970481,139.42,139.39,0.05257022]
[1740672284714,12.14,139.48,139.39,0.05257022]
[1740672285016,12.14,139.48,139.35,9.85621393]
[1740672285915,7.1772,139.41,139.4,0.04560014]
[1740672286113,12.14,139.41,139.39,104.7268862]
[1740672286314,33.66,139.41,139.39,90.6369862]
[1740672286915,7.1778,139.4,139.39,85.9398862]
[1740672287116,33.66,139.41,139.34,9.81401614]
[1740672287315,7.1781,139.4,139.38,0.0489391]
[1740672287507,12.18574075,139.41,139.38,0.0489391]
[1740672289320,0.04574075,139.41,139.38,0.0489391]
[1740672289518,12.14,139.46,139.38,0.0489391]
[1740672290922,0.04653774,139.43,139.38,0.0489391]
[1740672291614,12.14,139.46,139.38,0.0489391]
[1740672292120,19.3151,139.46,139.38,0.0489391]
[1740672292421,12.14,139.46,139.38,0.0489391]
[1740672292609,0.05506555,139.43,139.38,0.0489391]
[1740672294414,107.58422017,139.51,139.38,0.0489391]
[1740672294619,7.1728,139.5,139.36,195.24]
[1740672294816,12.14,139.53,139.36,207.38]
[1740672295023,7.1717,139.52,139.36,207.38]
[1740672295316,184.10602307,139.6,139.36,400.38]
[1740672295522,184.10602307,139.6,139.36,207.38]
[1740672295523,3.0372,139.6,139.36,207.38]
[1740672295718,0.04561577,139.49,139.47,0.04952757]
[1740672295919,12.14,139.59,139.47,0.04952757]
[1740672296114,7.1691,139.57,139.36,207.38]
[1740672296319,7.1691,139.57,139.37,1.43502905]
[1740672296622,7.1691,139.57,139.49,7.1727]
[1740672297121,0.05116981,139.54,139.52,0.0481758]
[1740672297313,12.12,139.59,139.52,0.0481758]
[1740672297520,7.1686,139.58,139.38,14.3569]
[1740672297721,12.12,139.59,139.49,7.173]
[1740672297918,12.12,139.59,139.5,3.0444]
[1740672298424,0.05137963,139.56,139.53,0.04957117]
[1740672302217,7.17,139.55,139.53,0.04957117]
[1740672302413,0.05137963,139.56,139.53,0.04957117]
[1740672302912,21.55137963,139.56,139.45,2.8837]
[1740672303111,184.10602307,139.58,139.45,2.8837]
[1740672304016,0.05441817,139.53,139.45,2.8837]
[1740672304317,12.12,139.59,139.5,0.04942665]
[1740672304522,12.12,139.59,139.45,2.8837]
[1740672305422,0.05410663,139.53,139.51,0.0481675]
[1740672305623,7.1694,139.57,139.52,7.1712]
[1740672305822,12.12,139.59,139.44,5.7375]
[1740672306624,12.12,139.59,139.49,7.1728]
[1740672306824,0.05015396,139.53,139.5,0.04738974]
[1740672307016,12.12,139.59,139.47,39.25606458]
[1740672307213,0.04868315,139.53,139.5,0.04689644]
[1740672307419,12.12,139.52,139.47,39.25606458]
[1740672307724,7.1736,139.48,139.47,39.25606458]
[1740672307928,12.12,139.52,139.47,39.25606458]
[1740672308620,7.28898739,139.51,139.48,0.05169622]
[1740672308821,7.1731,139.49,139.48,0.05169622]
[1740672309024,5.97037812,139.51,139.48,0.05169622]
[1740672309224,13.14267812,139.51,139.48,0.05169622]
[1740672309428,0.04567812,139.51,139.48,0.05169622]
[1740672309821,12.12,139.58,139.48,0.05169622]
[1740672310127,12.12,139.58,139.48,6.1832]
[1740672310726,5.9247,139.61,139.48,6.1832]
[1740672310922,12.12,139.59,139.48,6.1832]
[1740672311128,0.05303592,139.56,139.53,0.05192354]
[1740672312529,0.05303592,139.56,139.55,7.17]
[1740672312730,0.05303592,139.56,139.53,0.05192354]
[1740672313031,0.05303592,139.56,139.54,7.1702]
[1740672313322,0.05303592,139.56,139.53,0.05192354]
[1740672313522,0.05303592,139.56,139.53,7.22242354]
[1740672313727,0.05303592,139.56,139.53,0.05192354]
[1740672314329,0.05303592,139.56,139.55,7.17]
[1740672314829,5.8438,139.65,139.6,7.1672]
[1740672315028,12.12,139.71,139.56,3.0966]
[1740672315231,3.7872,139.71,139.56,3.0966]
[1740672315432,1.3169996,139.7,139.56,196.0966]
[1740672315632,3.7872,139.71,139.56,196.0966]
[1740672315932,5.7695,139.76,139.56,196.0966]
[1740672316229,1.31634242,139.75,139.62,0.04838526]
[1740672316428,4.21054242,139.75,139.62,0.04838526]
[1740672316622,4.21054242,139.75,139.59,194.98]
[1740672316829,41.61338077,139.77,139.59,194.98]
[1740672317026,1.31627624,139.76,139.66,7.164]
[1740672317333,29.49338077,139.77,139.7,0.0460364]
[1740672317832,29.49338077,139.77,139.68,3.0966]
[1740672318027,29.49338077,139.77,139.72,0.05241907]
[1740672318834,36.65228077,139.77,139.72,0.05241907]
[1740672319225,7.1608,139.73,139.72,0.05241907]
[1740672319932,12.12,139.74,139.66,39.25606458]
[1740672320632,7.1627,139.7,139.66,39.25606458]
[1740672320935,7.1627,139.7,139.69,78.51212918]
[1740672321439,7.21129469,139.71,139.69,78.51212918]
[1740672321731,0.04939469,139.71,139.69,78.51212918]
[1740672322132,12.1,139.74,139.69,78.55982891]
[1740672323026,1.31651718,139.73,139.69,78.55982891]
[1740672323226,1.4119965,139.76,139.69,78.55982891]
[1740672323537,1.31629922,139.75,139.69,78.55982891]
[1740672324040,7.10265102,139.7,139.69,0.04769973]
[1740672324632,7.1642,139.67,139.63,39.07053361]
[1740672324828,13.5119965,139.76,139.63,39.07053361]
[1740672325039,1.31667127,139.75,139.63,39.07053361]
[1740672325538,1.31667127,139.75,139.62,42.76193361]
[1740672325741,0.04547007,139.7,139.68,0.0516433]
[1740672325939,7.1628,139.69,139.68,0.0516433]
[1740672326637,0.05465094,139.7,139.68,0.0516433]
[1740672326937,1.31654288,139.75,139.68,0.0516433]
[1740672327238,7.1628,139.69,139.68,0.0516433]
[1740672327634,7.1647,139.66,139.62,42.76193361]
[1740672327829,13.5119965,139.76,139.62,42.76193361]
[1740672328034,15.63643308,139.75,139.62,39.07053361]
[1740672328236,1.31673308,139.74,139.62,39.07053361]
[1740672328434,1.31673308,139.73,139.62,39.07053361]
[1740672328638,1.31673308,139.72,139.62,39.07053361]
[1740672328838,7.1659,139.63,139.62,39.07053361]
[1740672329338,0.05407787,139.64,139.62,39.07053361]
[1740672329641,0.05407787,139.64,139.61,0.05146041]
[1740672334447,0.05407787,139.64,139.53,82.41342918]
[1740672334841,4.0654,139.65,139.53,82.41342918]
[1740672335236,1.31742543,139.64,139.53,82.41342918]
[1740672335741,1.31742543,139.64,139.57,0.05174082]
[1740672335742,0.04940535,139.6,139.57,0.05174082]
[1740672335939,12.14940535,139.6,139.57,0.05174082]
[1740672336134,12.14940535,139.6,139.53,78.51212918]
[1740672336540,19.31710535,139.6,139.54,7.1705]
[1740672337142,12.14940535,139.6,139.53,85.68292918]
[1740672337337,12.14940535,139.6,139.56,0.04981359]
[1740672338240,0.04940535,139.6,139.56,0.04981359]
[1740672338446,0.04940535,139.6,139.59,7.1679]
[1740672338841,0.04940535,139.6,139.56,0.04981359]
[1740672340051,0.04940535,139.6,139.59,7.1679]
[1740672340348,12.1,139.68,139.57,3.7287]
[1740672340850,7.1644,139.66,139.57,3.7287]
[1740672341048,12.1,139.68,139.57,3.7287]
[1740672341247,111.46627916,139.69,139.57,3.7287]
[1740672341248,107.45057916,139.69,139.57,3.7287]
[1740672341440,12.1,139.71,139.57,3.7287]
[1740672341640,0.05404289,139.64,139.63,7.1654]
[1740672342047,0.05224839,139.65,139.62,0.05272302]
[1740672342551,0.05167259,139.65,139.62,0.05156273]
[1740672342751,0.05167259,139.65,139.63,7.1656]
[1740672342946,0.05167259,139.65,139.62,0.05156273]
[1740672343152,12.1,139.72,139.62,0.05156273]
[1740672343351,12.1,139.72,139.62,7.1662]
[1740672343553,12.1,139.72,139.57,3.7287]
[1740672344054,1.31672225,139.71,139.57,3.7287]
[1740672344351,7.21745756,139.65,139.63,0.04617475]
[1740672344553,196.20602307,139.72,139.63,0.04617475]
[1740672344755,0.052393,139.65,139.63,0.04617475]
[1740672345050,1.31683468,139.71,139.63,0.0543791]
[1740672345349,0.04724672,139.65,139.63,0.0543791]
[1740672345556,196.20602307,139.72,139.63,0.0543791]
[1740672345753,0.04629288,139.65,139.57,82.24082918]
[1740672345957,12.1,139.72,139.64,7.1651]
[1740672346257,12.1,139.72,139.57,82.24082918]
[1740672346457,0.04603297,139.69,139.6,7.1671]
[1740672346661,1.31669353,139.71,139.57,82.24082918]
[1740672347060,196.20602307,139.72,139.57,78.51212918]
[1740672347261,3.7539,139.7,139.57,78.51212918]
[1740672347457,185.42307365,139.69,139.57,73.46452918]
[1740672347760,7.1685,139.58,139.57,73.46452918]
[1740672348262,12.1542672,139.59,139.57,73.46452918]
[1740672348457,12.1542672,139.59,139.58,5.7221646]
[1740672349151,0.0542672,139.59,139.58,5.7221646]
[1740672351863,0.0542672,139.59,139.56,0.05196601]
[1740672354962,0.0542672,139.59,139.51,5.7221646]
[1740672356262,0.0542672,139.59,139.54,0.04818451]
[1740672356466,184.10602307,139.58,139.51,5.7221646]
[1740672356667,17.50757024,139.57,139.51,5.7221646]
[1740672356864,16.1899,139.57,139.51,5.7221646]
[1740672357267,7.1715,139.52,139.51,5.7221646]
[1740672358269,7.1715,139.52,139.5,0.04523799]
[1740672358867,7.22644391,139.53,139.5,0.04523799]
[1740672359771,7.1716,139.52,139.5,0.04523799]
[1740672359969,0.05504391,139.53,139.42,117.34887643]
[1740672360165,1.31846957,139.56,139.42,117.34887643]
[1740672360371,7.1741,139.47,139.42,117.34887643]
[1740672360766,12.12,139.48,139.42,117.34887643]
[1740672361067,12.12,139.53,139.44,0.05372368]
[1740672361274,0.04743287,139.46,139.44,0.05372368]
[1740672361470,12.12,139.53,139.41,3.8303]
[1740672361667,0.04917077,139.5,139.44,0.04523959]
[1740672362171,0.04917077,139.5,139.46,0.05069519]
[1740672362563,12.12,139.53,139.46,0.05069519]
[1740672362762,0.05450476,139.49,139.46,0.05069519]
[1740672363574,7.1741,139.47,139.46,0.05069519]
[1740672364166,0.05450476,139.49,139.39,29.67508038]
[1740672364371,1.31885174,139.52,139.39,29.67508038]
[1740672364874,1.31880746,139.51,139.39,29.67508038]
[1740672365074,196.22602307,139.53,139.39,29.67508038]
[1740672365374,0.0528196,139.47,139.41,7.1771]
[1740672365564,12.12,139.46,139.45,0.0550676]
[1740672365764,12.12,139.46,139.39,29.67508038]
[1740672365970,12.12,139.46,139.41,0.05491554]
[1740672366275,7.1765,139.43,139.41,0.05491554]
[1740672366773,0.05320368,139.44,139.41,0.05491554]
[1740672367569,184.10602307,139.58,139.41,0.05491554]
[1740672367875,13.43842456,139.56,139.38,3.8427]
[1740672368074,107.54623823,139.57,139.38,15.9627]
[1740672368470,7.1701,139.55,139.5,7.1722]
[1740672368968,0.05029563,139.54,139.51,0.04720887]
[1740672369166,1.31801036,139.6,139.42,388.08]
[1740672369372,12.12,139.62,139.42,388.08]
[1740672369875,1.31775046,139.61,139.42,388.08]
[1740672370376,0.05379288,139.53,139.5,0.04918424]
[1740672370772,1.31775046,139.61,139.42,388.08]
[1740672371076,0.04797065,139.53,139.5,0.05505942]
[1740672371275,1.31775046,139.61,139.42,388.08]
[1740672371477,7.1696,139.56,139.42,388.08]
[1740672371677,12.12,139.62,139.42,388.08]
[1740672371876,1.31784367,139.61,139.42,195.08]
[1740672372372,1.31784367,139.61,139.5,0.04841776]
[1740672372678,1.31784367,139.61,139.42,195.08]
[1740672372877,0.05149737,139.57,139.54,0.04816793]
[1740672373075,1.31784367,139.59,139.46,7.1743]
[1740672373267,0.04533327,139.57,139.54,2.104e-05]
[1740672373471,7.1723,139.51,139.43,11.083]
[1740672373873,12.12,139.53,139.43,3.9072]
[1740672374475,7.1736,139.48,139.47,0.05402798]
[1740672374973,0.05078454,139.49,139.43,114.13017339]
[1740672376370,7.1746,139.46,139.45,5.1e-06]
[1740672376570,19.2946,139.46,139.45,5.1e-06]
[1740672376776,40.8146,139.46,139.45,5.1e-06]
[1740672377777,42.13372772,139.46,139.45,5.1e-06]
[1740672379679,21.51,139.44,139.33,108.45437901]
[1740672379878,185.42515079,139.43,139.33,108.45437901]
[1740672380074,1.31912772,139.42,139.33,108.45437901]
[1740672380384,5.22042772,139.42,139.33,108.45437901]
[1740672380683,7.1788,139.38,139.33,108.45437901]
[1740672380877,12.12,139.37,139.36,0.05278414]
[1740672381584,19.2993,139.37,139.36,0.05278414]
[1740672381879,12.12,139.37,139.29,33.69328038]
[1740672382386,7.1806,139.35,139.29,33.69328038]
[1740672382775,12.12,139.37,139.29,33.69328038]
[1740672382974,0.05178099,139.33,139.31,0.04839091]
[1740672383576,0.05178099,139.33,139.29,29.67508038]
[1740672383777,7.1829,139.3,139.29,29.67508038]
[1740672383981,19.3029,139.3,139.29,29.67508038]
[1740672384881,12.12,139.3,139.29,29.67508038]
[1740672385592,12.12,139.3,139.28,0.05498372]
[1740672386988,19.3029,139.3,139.28,0.05498372]
[1740672387685,19.3031,139.3,139.28,0.05498372]
[1740672387885,12.12,139.3,139.28,0.05498372]
[1740672388290,0.05178099,139.33,139.28,0.05498372]
[1740672389579,12.12,139.34,139.28,0.05498372]
[1740672390083,12.12,139.34,139.29,7.1832]
[1740672390280,12.12,139.34,139.28,0.05498372]
[1740672390792,7.1834,139.29,139.28,0.05498372]
[1740672392092,0.05410981,139.32,139.28,0.05498372]
[1740672392496,107.6787363,139.4,139.28,0.05498372]